fUST/lending_fUST_20240704
["ID","MTS","AMOUNT","RATE_DAILY","PERIOD"]
[331088568,1720074642882,-607.29,0.00014768,2]
[331088569,1720074642891,-500.0,0.00014768,2]
[331088570,1720074642901,-500.0,0.00014768,2]
[331088571,1720074642911,-500.0,0.00014768,2]
[331088572,1720074642920,-500.0,0.00014768,2]
[331088573,1720074642930,-500.0,0.00014768,2]
[331088574,1720074642940,-500.0,0.00014768,2]
[331088577,1720074642950,-500.0,0.00014768,2]
[331088579,1720074642959,-500.0,0.00014768,2]
[331088580,1720074642969,-2961.14,0.00014768,2]
[331088581,1720074642978,-537.32435733,0.00014768,2]
[331088582,1720074642988,-500.0,0.00014768,2]
[331088583,1720074642997,-871.45,0.00014768,2]
[331088584,1720074643007,-500.0,0.00014768,2]
[331088585,1720074643016,-683.83,0.00014768,2]
[331088586,1720074643025,-500.0,0.00014768,2]
[331088587,1720074643035,-500.0,0.00014768,2]
[331088588,1720074643044,-500.0,0.00014769,2]
[331088589,1720074643053,-500.0,0.00014769,2]
[331088590,1720074643062,-500.0,0.00014769,2]
[331088591,1720074643072,-500.0,0.00014769,2]
[331088595,1720074643084,-500.0,0.00014769,2]
[331088596,1720074643094,-500.0,0.00014769,2]
[331088598,1720074643104,-500.0,0.00014769,2]
[331088599,1720074643114,-500.0,0.00014769,2]
[331088600,1720074643125,-500.0,0.00014769,2]
[331088601,1720074643135,-500.0,0.00014769,2]
[331088602,1720074643145,-529.45,0.00014769,2]
[331088603,1720074643155,-500.0,0.00014769,2]
[331088604,1720074643165,-500.0,0.00014769,2]
[331088605,1720074643175,-500.0,0.00014769,2]
[331088606,1720074643185,-500.0,0.00014769,2]
[331088607,1720074643195,-500.0,0.00014769,2]
[331088608,1720074643205,-500.0,0.00014769,2]
[331088609,1720074643215,-500.0,0.00014769,2]
[331088610,1720074643224,-500.0,0.00014769,2]
[331088611,1720074643234,-500.0,0.00014769,2]
[331088613,1720074643245,-500.0,0.00014769,2]
[331088615,1720074643256,-354.47965291,0.00014769,2]
[331088616,1720074643266,-21764.6044125,0.0001477,2]
[331088618,1720074643276,-500.0,0.00014771,2]
[331088620,1720074643287,-500.0,0.00014771,2]
[331088622,1720074643297,-500.0,0.00014771,2]
[331088625,1720074643307,-4617.44,0.00014771,2]
[331088628,1720074643317,-849.98,0.00014771,2]
[331088630,1720074643336,-7124.73,0.00014778,2]
[331088632,1720074643346,-500.0,0.00014778,2]
[331088634,1720074643356,-500.0,0.00014778,2]
[331088636,1720074643365,-500.0,0.00014778,2]
[331088638,1720074643376,-512.67,0.0001478,2]
[331088640,1720074643386,-4093.45,0.0001478,2]
[331088642,1720074643396,-2219.68,0.0001478,2]
[331088644,1720074643406,-21764.6044125,0.0001499,2]
[331088646,1720074643417,-6076.9012323,0.00014998,2]
[331088648,1720074643427,-9614.54817379,0.00014998,2]
[331088650,1720074643436,-3130.06017381,0.00014999,4]
[331088651,1720074643446,-789.77698638,0.00014999,2]
[331088652,1720074643455,-2118.3618334,0.00014999,2]
[331088653,1720074643465,-1634.59229075,0.00014999,2]
[331088654,1720074643475,-1463.29635585,0.00014999,2]
[331088655,1720074643485,-4710.72024946,0.00014999,2]
[331088656,1720074643495,-3078.51196359,0.00014999,2]
[331088657,1720074643505,-1597.25650539,0.00014999,2]
[331088658,1720074643515,-3137.77932824,0.00014999,2]
[331088659,1720074643524,-1500.0,0.00014999,2]
[331088660,1720074643534,-948.84245203,0.00015,2]
[331088661,1720074643544,-395.4705443,0.00015,2]
[331088662,1720074643554,-1104.60661146,0.00015,2]
[331088663,1720074643564,-2420.55776569,0.00015,2]
[331088664,1720074643574,-1039.06688618,0.00015,2]
[331088665,1720074643587,-808.0087546,0.00015,2]
[331088666,1720074643596,-2832.46914027,0.00015,2]
[331088667,1720074643606,-21764.6044125,0.00015032,2]
[331088668,1720074643615,-500.0,0.00015041,2]
[331088669,1720074643624,-1357.99,0.00015041,2]
[331088670,1720074643634,-1561.31,0.00015041,2]
[331088671,1720074643643,-500.0,0.00015041,2]
[331088672,1720074643653,-807.99,0.00015041,2]
[331088673,1720074643663,-6111.81,0.00015041,2]
[331088674,1720074643673,-604.58,0.00015041,2]
[331088675,1720074643683,-288.83,0.00015041,2]
[331088676,1720074643693,-2948.23,0.00015041,2]
[331088677,1720074643702,-500.0,0.00015041,2]
[331088678,1720074643712,-242.75,0.00015041,2]
[331088679,1720074643724,-500.0,0.00015041,2]
[331088680,1720074643734,-500.0,0.00015041,2]
[331088681,1720074643744,-1395.33,0.00015041,2]
[331088682,1720074643754,-1645.82,0.00015041,2]
[331088683,1720074643775,-962.2,0.00015041,2]
[331088684,1720074643785,-730.35,0.00015041,2]
[331088685,1720074643796,-8045.98731042,0.00015041,2]
[331088686,1720074643956,-796.01268958,0.00015041,2]
[331088687,1720074643966,-3421.22,0.00015041,2]
[331088688,1720074643976,-623.29,0.00015041,2]
[331088689,1720074643985,-1117.55,0.00015041,2]
[331088690,1720074643994,-2146.91,0.00015041,2]
[331088691,1720074644004,-545.05,0.00015041,2]
[331088692,1720074644013,-500.0,0.00015041,2]
[331088693,1720074644023,-500.0,0.00015042,2]
[331088694,1720074644032,-500.0,0.00015042,2]
[331088695,1720074644042,-513.45,0.00015042,2]
[331088696,1720074644050,-500.0,0.00015042,2]
[331088697,1720074644059,-751.0,0.00015042,2]
[331088698,1720074644069,-500.0,0.00015042,2]
[331088699,1720074644080,-168.89198821,0.00015042,2]
[331088700,1720074644090,-1077.73,0.00015042,2]
[331088701,1720074644100,-369.50214599,0.00015042,2]
[331088702,1720074644109,-500.0,0.00015042,2]
[331088703,1720074644118,-500.0,0.00015042,2]
[331088704,1720074644127,-573.55,0.00015042,2]
[331088705,1720074644137,-831.4,0.00015042,2]
[331088706,1720074644146,-500.0,0.00015042,2]
[331088707,1720074644155,-500.0,0.00015042,2]
[331088708,1720074644165,-500.0,0.00015042,2]
[331088709,1720074644174,-500.0,0.00015042,2]
[331088710,1720074644183,-500.0,0.00015042,2]
[331088711,1720074644192,-500.0,0.00015042,2]
[331088712,1720074644201,-500.0,0.00015042,2]
[331088713,1720074644210,-500.0,0.00015042,2]
[331088714,1720074644220,-500.0,0.00015042,2]
[331088715,1720074644229,-500.0,0.00015042,2]
[331088716,1720074644238,-500.0,0.00015042,2]
[331088717,1720074644249,-500.0,0.00015042,2]
[331088718,1720074644261,-500.0,0.00015042,2]
[331088719,1720074644270,-500.0,0.00015042,2]
[331088720,1720074644279,-500.0,0.00015042,2]
[331088721,1720074644289,-500.0,0.00015042,2]
[331088722,1720074644299,-500.0,0.00015042,2]
[331088723,1720074644308,-500.0,0.00015042,2]
[331088724,1720074644317,-500.0,0.00015042,2]
[331088725,1720074644330,-500.0,0.00015042,2]
[331088726,1720074644341,-552.01,0.00015042,2]
[331088727,1720074644351,-338.96349667,0.00015042,2]
[331088728,1720074644360,-500.0,0.00015042,2]
[331088729,1720074644369,-500.0,0.00015042,2]
[331088730,1720074644378,-500.0,0.00015042,2]
[331088731,1720074644387,-607.29,0.00015042,2]
[331088732,1720074644396,-500.0,0.00015042,2]
[331088733,1720074644405,-500.0,0.00015042,2]
[331088734,1720074644413,-500.0,0.00015042,2]
[331088735,1720074644422,-500.0,0.00015042,2]
[331088736,1720074644431,-500.0,0.00015042,2]
[331088737,1720074644441,-500.0,0.00015042,2]
[331088738,1720074644450,-2961.14,0.00015042,2]
[331088739,1720074644459,-500.0,0.00015042,2]
[331088740,1720074644468,-871.45,0.00015042,2]
[331088741,1720074644478,-500.0,0.00015042,2]
[331088742,1720074644487,-683.83,0.00015042,2]
[331088743,1720074644496,-500.0,0.00015042,2]
[331088744,1720074644505,-500.0,0.00015042,2]
[331088745,1720074644515,-500.0,0.00015043,2]
[331088746,1720074644525,-500.0,0.00015043,2]
[331088747,1720074644534,-500.0,0.00015043,2]
[331088748,1720074644544,-500.0,0.00015043,2]
[331088749,1720074644553,-500.0,0.00015043,2]
[331088750,1720074644563,-500.0,0.00015043,2]
[331088751,1720074644572,-500.0,0.00015043,2]
[331088752,1720074644585,-500.0,0.00015043,2]
[331088753,1720074644594,-529.45,0.00015043,2]
[331088754,1720074644604,-500.0,0.00015043,2]
[331088755,1720074644726,-500.0,0.00015043,2]
[331088756,1720074644736,-500.0,0.00015043,2]
[331088757,1720074644746,-500.0,0.00015043,2]
[331088758,1720074644755,-500.0,0.00015043,2]
[331088759,1720074644765,-500.0,0.00015043,2]
[331088760,1720074644774,-500.0,0.00015043,2]
[331088761,1720074644783,-500.0,0.00015043,2]
[331088762,1720074644793,-500.0,0.00015043,2]
[331088763,1720074644802,-500.0,0.00015043,2]
[331088764,1720074644811,-21764.6044125,0.00015044,2]
[331088765,1720074644820,-500.0,0.00015045,2]
[331088766,1720074644832,-500.0,0.00015045,2]
[331088767,1720074644841,-500.0,0.00015045,2]
[331088768,1720074644850,-4617.44,0.00015045,2]
[331088769,1720074644859,-849.98,0.00015045,2]
[331088770,1720074644869,-7124.73,0.00015052,2]
[331088771,1720074644878,-500.0,0.00015052,2]
[331088772,1720074644887,-500.0,0.00015052,2]
[331088773,1720074644897,-512.67,0.00015054,2]
[331088774,1720074644906,-4093.45,0.00015054,2]
[331088775,1720074644915,-2219.68,0.00015054,2]
[331088776,1720074644924,-21764.6044125,0.00015306,2]
[331088777,1720074644933,-500.0,0.00015315,2]
[331088778,1720074644942,-1357.99,0.00015315,2]
[331088779,1720074644952,-1561.31,0.00015315,2]
[331088780,1720074644961,-500.0,0.00015315,2]
[331088781,1720074644970,-807.99,0.00015315,2]
[331088782,1720074644979,-6111.81,0.00015315,2]
[331088783,1720074644989,-604.58,0.00015315,2]
[331088784,1720074644998,-2948.23,0.00015315,2]
[331088785,1720074645007,-500.0,0.00015315,2]
[331088786,1720074645016,-403.92013656,0.00015315,2]
[331088787,1720074645025,-500.0,0.00015315,2]
[331088788,1720074645034,-1395.33,0.00015315,2]
[331088789,1720074645043,-1645.82,0.00015315,2]
[331088790,1720074645052,-962.2,0.00015315,2]
[331088792,1720074645062,-730.35,0.00015315,2]
[331088793,1720074645071,-8842.0,0.00015315,2]
[331088795,1720074645083,-3421.22,0.00015315,2]
[331088796,1720074645092,-623.29,0.00015315,2]
[331088797,1720074645101,-1117.55,0.00015315,2]
[331088799,1720074645110,-2146.91,0.00015315,2]
[331088800,1720074645120,-545.05,0.00015315,2]
[331088802,1720074645129,-500.0,0.00015315,2]
[331088804,1720074645138,-500.0,0.00015316,2]
[331088805,1720074645147,-500.0,0.00015316,2]
[331088806,1720074645156,-513.45,0.00015316,2]
[331088807,1720074645166,-344.29695865,0.00015316,2]
[331088808,1720074645175,-751.0,0.00015316,2]
[331088809,1720074645184,-500.0,0.00015316,2]
[331088810,1720074645193,-1077.73,0.00015316,2]
[331088811,1720074645202,-500.0,0.00015316,2]
[331088812,1720074645212,-500.0,0.00015316,2]
[331088813,1720074645222,-573.55,0.00015316,2]
[331088814,1720074645231,-831.4,0.00015316,2]
[331088815,1720074645240,-500.0,0.00015316,2]
[331088816,1720074645255,-500.0,0.00015316,2]
[331088817,1720074645265,-500.0,0.00015316,2]
[331088818,1720074645274,-500.0,0.00015316,2]
[331088819,1720074645283,-500.0,0.00015316,2]
[331088820,1720074645293,-500.0,0.00015316,2]
[331088821,1720074645304,-500.0,0.00015316,2]
[331088822,1720074645313,-500.0,0.00015316,2]
[331088823,1720074645323,-500.0,0.00015316,2]
[331088824,1720074645335,-500.0,0.00015316,2]
[331088825,1720074645344,-500.0,0.00015316,2]
[331088826,1720074645353,-500.0,0.00015316,2]
[331088827,1720074645363,-500.0,0.00015316,2]
[331088828,1720074645371,-500.0,0.00015316,2]
[331088829,1720074645381,-500.0,0.00015316,2]
[331088830,1720074645390,-500.0,0.00015316,2]
[331088831,1720074645399,-500.0,0.00015316,2]
[331088832,1720074645409,-500.0,0.00015316,2]
[331088833,1720074645418,-500.0,0.00015316,2]
[331088834,1720074645427,-500.0,0.00015316,2]
[331088835,1720074645437,-552.01,0.00015316,2]
[331088836,1720074645447,-500.0,0.00015316,2]
[331088837,1720074645458,-500.0,0.00015316,2]
[331088838,1720074645468,-500.0,0.00015316,2]
[331088839,1720074645477,-607.29,0.00015316,2]
[331088840,1720074645487,-500.0,0.00015316,2]
[331088841,1720074645496,-500.0,0.00015316,2]
[331088842,1720074645505,-512.18885282,0.00015316,2]
[331088843,1720074645515,-482.77416286,0.00015316,2]
[331088844,1720074645524,-500.0,0.00015316,2]
[331088845,1720074645534,-2961.14,0.00015316,2]
[331088846,1720074645543,-511.80910555,0.00015316,2]
[331088847,1720074645553,-871.45,0.00015316,2]
[331088848,1720074645562,-500.0,0.00015316,2]
[331088849,1720074645571,-683.83,0.00015316,2]
[331088850,1720074645583,-500.0,0.00015316,2]
[331088851,1720074645592,-500.0,0.00015316,2]
[331088852,1720074645601,-500.0,0.00015317,2]
[331088853,1720074645611,-567.05276148,0.00015317,2]
[331088854,1720074645620,-500.0,0.00015317,2]
[331088855,1720074645629,-500.0,0.00015317,2]
[331088856,1720074645638,-500.0,0.00015317,2]
[331088857,1720074645647,-515.74477694,0.00015317,2]
[331088858,1720074645657,-220.99482938,0.00015317,2]
[331088859,1720074645666,-500.0,0.00015317,2]
[331088860,1720074645675,-529.45,0.00015317,2]
[331088861,1720074645684,-500.0,0.00015317,2]
[331088862,1720074645693,-500.0,0.00015317,2]
[331088863,1720074645702,-500.0,0.00015317,2]
[331088864,1720074645712,-500.0,0.00015317,2]
[331088865,1720074645722,-500.0,0.00015317,2]
[331088866,1720074645731,-500.0,0.00015317,2]
[331088867,1720074645741,-500.0,0.00015317,2]
[331088868,1720074645750,-500.0,0.00015317,2]
[331088869,1720074645759,-500.0,0.00015317,2]
[331088870,1720074645771,-21764.6044125,0.00015318,2]
[331088871,1720074645781,-500.0,0.00015319,2]
[331088872,1720074645791,-500.0,0.00015319,2]
[331088873,1720074645800,-500.0,0.00015319,2]
[331088874,1720074645809,-4617.44,0.00015319,2]
[331088875,1720074645818,-849.98,0.00015319,2]
[331088876,1720074645831,-7124.73,0.00015326,2]
[331088877,1720074645840,-500.0,0.00015326,2]
[331088878,1720074645849,-512.67,0.00015328,2]
[331088879,1720074645859,-4093.45,0.00015328,2]
[331088880,1720074645869,-2219.68,0.00015328,2]
[331088882,1720074645878,-858.47517737,0.00015352,2]
[331088884,1720074645887,-152.272,0.00015373,2]
[331088886,1720074645897,-877.0,0.00015373,2]
[331088888,1720074645906,-1000.0,0.000155,2]
[331088889,1720074645916,-306.8349406,0.00015562,2]
[331088890,1720074645925,-500.0,0.00015589,2]
[331088891,1720074645934,-1357.99,0.00015589,2]
[331088892,1720074645942,-1561.31,0.00015589,2]
[331088893,1720074645952,-807.99,0.00015589,2]
[331088894,1720074645961,-6111.81,0.00015589,2]
[331088895,1720074645971,-604.58,0.00015589,2]
[331088896,1720074645980,-2948.23,0.00015589,2]
[331088897,1720074645989,-500.0,0.00015589,2]
[331088898,1720074645998,-500.0,0.00015589,2]
[331088899,1720074646006,-1395.33,0.00015589,2]
[331088900,1720074646016,-1645.82,0.00015589,2]
[331088901,1720074646025,-962.2,0.00015589,2]
[331088902,1720074646034,-730.35,0.00015589,2]
[331088903,1720074646043,-8842.0,0.00015589,2]
[331088904,1720074646052,-3421.22,0.00015589,2]
[331088905,1720074646061,-623.29,0.00015589,2]
[331088906,1720074646070,-1117.55,0.00015589,2]
[331088907,1720074646080,-2146.91,0.00015589,2]
[331088908,1720074646089,-545.05,0.00015589,2]
[331088909,1720074646098,-500.0,0.00015589,2]
[331088910,1720074646107,-500.12268997,0.0001559,2]
[331088911,1720074646116,-500.0,0.0001559,2]
[331088912,1720074646125,-513.45,0.0001559,2]
[331088913,1720074646134,-751.0,0.0001559,2]
[331088914,1720074646143,-500.0,0.0001559,2]
[331088915,1720074646152,-1077.73,0.0001559,2]
[331088916,1720074646161,-500.0,0.0001559,2]
[331088917,1720074646170,-573.55,0.0001559,2]
[331088918,1720074646179,-831.4,0.0001559,2]
[331088919,1720074646188,-500.0,0.0001559,2]
[331088920,1720074646197,-500.0,0.0001559,2]
[331088921,1720074646206,-500.0,0.0001559,2]
[331088922,1720074646215,-500.0,0.0001559,2]
[331088923,1720074646224,-232.02534032,0.0001559,2]
[331088924,1720074646233,-500.0,0.0001559,2]
[331088925,1720074646243,-500.0,0.0001559,2]
[331088926,1720074646255,-355.79847162,0.0001559,2]
[331088927,1720074646264,-500.0,0.0001559,2]
[331088928,1720074646273,-344.89689008,0.0001559,2]
[331088929,1720074646283,-500.0,0.0001559,2]
[331088930,1720074646293,-500.0,0.0001559,2]
[331088931,1720074646301,-474.19889838,0.0001559,2]
[331088932,1720074646310,-500.0,0.0001559,2]
[331088933,1720074646319,-514.05635347,0.0001559,2]
[331088934,1720074646330,-256.08150607,0.0001559,2]
[331088936,1720074646342,-551.3941311,0.0001559,2]
[331088937,1720074646351,-500.0,0.0001559,2]
[331088938,1720074646360,-500.0,0.0001559,2]
[331088939,1720074646369,-552.01,0.0001559,2]
[331088940,1720074646378,-328.16772296,0.0001559,2]
[331088941,1720074646387,-607.29,0.0001559,2]
[331088942,1720074646396,-500.0,0.0001559,2]
[331088943,1720074646405,-500.0,0.0001559,2]
[331088944,1720074646414,-500.0,0.0001559,2]
[331088945,1720074646423,-2961.14,0.0001559,2]
[331088946,1720074646433,-871.45,0.0001559,2]
[331088947,1720074646442,-500.0,0.0001559,2]
[331088948,1720074646452,-683.83,0.0001559,2]
[331088949,1720074646461,-500.0,0.0001559,2]
[331088950,1720074646470,-500.0,0.0001559,2]
[331088951,1720074646480,-311.96453479,0.00015591,2]
[331088952,1720074646488,-500.0,0.00015591,2]
[331088954,1720074646498,-500.0,0.00015591,2]
[331088956,1720074646507,-500.0,0.00015591,2]
[331088957,1720074646517,-500.0,0.00015591,2]
[331088958,1720074646526,-529.45,0.00015591,2]
[331088959,1720074646535,-500.0,0.00015591,2]
[331088960,1720074646546,-349.38026336,0.00015591,2]
[331088961,1720074646555,-500.0,0.00015591,2]
[331088962,1720074646565,-500.0,0.00015591,2]
[331088963,1720074646574,-649.632363,0.00015591,2]
[331088964,1720074646588,-500.0,0.00015591,2]
[331088965,1720074646597,-500.0,0.00015591,2]
[331088966,1720074646606,-500.0,0.00015591,2]
[331088967,1720074646616,-500.0,0.00015591,2]
[331088968,1720074646625,-500.0,0.00015593,2]
[331088969,1720074646635,-500.0,0.00015593,2]
[331088970,1720074646644,-288.2148857,0.00015593,2]
[331088971,1720074646654,-4617.44,0.00015593,2]
[331088972,1720074646663,-849.98,0.00015593,2]
[331088973,1720074646672,-6867.69402829,0.000156,2]
[331088974,1720074646682,-7124.73,0.000156,2]
[331088975,1720074646691,-500.0,0.000156,2]
[331088976,1720074646700,-512.67,0.00015602,2]
[331088977,1720074646710,-4093.45,0.00015602,2]
[331088979,1720074646721,-2219.68,0.00015602,2]
[331088980,1720074646730,-151.0,0.00015616,2]
[331088981,1720074646740,-286.750402,0.00015616,2]
[331088982,1720074646749,-151.0,0.00015616,2]
[331088983,1720074646758,-198.0,0.00015616,2]
[331088984,1720074646767,-151.0,0.00015616,2]
[331088985,1720074646776,-151.0,0.00015616,2]
[331088986,1720074646786,-162.352123,0.00015616,2]
[331088987,1720074646795,-151.0,0.00015616,2]
[331088988,1720074646804,-151.0,0.00015616,2]
[331088989,1720074646813,-151.0,0.00015616,2]
[331088990,1720074646822,-151.0,0.00015616,2]
[331088991,1720074646836,-151.0,0.00015616,2]
[331088992,1720074646845,-151.0,0.00015616,2]
[331088993,1720074646854,-4003.1747846,0.00015616,2]
[331088994,1720074646863,-4003.1747846,0.00015616,2]
[331088995,1720074646874,-4003.1747846,0.00015616,2]
[331088996,1720074646883,-4003.1747846,0.00015616,2]
[331088997,1720074646893,-4003.1747846,0.00015616,2]
[331088998,1720074646902,-4003.1747846,0.00015616,2]
[331088999,1720074646911,-4003.1747846,0.00015616,2]
[331089000,1720074646920,-4003.1747846,0.00015616,2]
[331089001,1720074646929,-4003.1747846,0.00015616,2]
[331089002,1720074646938,-4003.1747846,0.00015616,2]
[331089003,1720074646948,-4003.1747846,0.00015616,2]
[331089004,1720074646957,-4003.1747846,0.00015616,2]
[331089005,1720074646966,-4003.1747846,0.00015616,2]
[331089006,1720074646975,-4003.1747846,0.00015616,2]
[331089007,1720074646985,-4003.1747846,0.00015616,2]
[331089008,1720074646994,-4003.1747846,0.00015616,2]
[331089009,1720074647005,-4003.1747846,0.00015616,2]
[331089010,1720074647014,-4003.1747846,0.00015616,2]
[331089011,1720074647023,-4003.1747846,0.00015616,2]
[331089012,1720074647129,-4003.1747846,0.00015616,2]
[331089013,1720074647139,-4003.1747846,0.00015616,2]
[331089014,1720074647148,-4003.1747846,0.00015616,2]
[331089015,1720074647158,-4003.1747846,0.00015616,2]
[331089016,1720074647167,-4003.1747846,0.00015616,2]
[331089017,1720074647176,-4003.1747846,0.00015616,2]
[331089018,1720074647184,-4003.1747846,0.00015616,2]
[331089019,1720074647193,-4003.1747846,0.00015616,2]
[331089020,1720074647202,-4003.1747846,0.00015616,2]
[331089021,1720074647211,-4003.1747846,0.00015616,2]
[331089022,1720074647220,-4003.1747846,0.00015616,2]
[331089023,1720074647231,-4003.1747846,0.00015616,2]
[331089024,1720074647240,-4003.1747846,0.00015616,2]
[331089025,1720074647250,-4003.1747846,0.00015616,2]
[331089026,1720074647262,-4003.1747846,0.00015616,2]
[331089027,1720074647271,-4003.1747846,0.00015616,2]
[331089028,1720074647281,-4003.1747846,0.00015616,2]
[331089029,1720074647290,-4003.1747846,0.00015616,2]
[331089030,1720074647299,-4003.1747846,0.00015616,2]
[331089031,1720074647308,-4003.1747846,0.00015616,2]
[331089032,1720074647317,-4003.1747846,0.00015616,2]
[331089033,1720074647331,-4003.1747846,0.00015616,2]
[331089034,1720074647341,-3372.00284602,0.00015616,2]
[331089035,1720074647644,-500.0,0.00014767,2]
[331089036,1720074647654,-500.0,0.00015041,2]
[331089037,1720074647663,-500.0,0.00015315,2]
[331089038,1720074647673,-500.0,0.00015589,2]
[331089039,1720074647682,-631.17193858,0.00015616,2]
[331089040,1720074647692,-4003.1747846,0.00015616,2]
[331089041,1720074647703,-4003.1747846,0.00015616,2]
[331089042,1720074647713,-329.969993,0.00015616,2]
[331089043,1720074647729,-1354.55067164,0.00015616,2]
[331089044,1720074647758,-500.0,0.0001422,2]
[331089045,1720074647767,-2253.48615835,0.00015616,2]
[331089046,1720074647777,-3938.00682299,0.00015616,2]
[331089047,1720074647787,-3938.00682299,0.00015616,2]
[331089048,1720074647799,-3938.00682299,0.00015616,2]
[331089049,1720074647808,-3938.00682299,0.00015616,2]
[331089050,1720074647817,-146.2796928,0.00015616,2]
[331089051,1720074647831,-660.44463536,0.00015616,2]
[331089052,1720074647843,-3131.28249483,0.00015616,2]
[331089053,1720074647852,-3155.83053089,0.00015616,2]
[331089054,1720074647894,-500.0,0.0001422,2]
[331089055,1720074647903,-509.87731984,0.00014494,2]
[331089056,1720074647912,-182.31920119,0.00014494,2]
[331089057,1720074647922,-782.1762921,0.00015616,2]
[331089058,1720074647931,-3938.00682299,0.00015616,2]
[331089059,1720074647940,-3938.00682299,0.00015616,2]
[331089060,1720074647949,-1394.51658144,0.00015616,2]
[331089061,1720074647960,-587.17,0.00015616,2]
[331090228,1720075115070,7224.962727,0.00013191,2]
[331090234,1720075358475,866.45028013,0.00013191,2]
[331090240,1720075549135,-164.43815915,0.00014018,2]
[331090241,1720075549154,-27.40672124,0.00014048,2]
[331090249,1720075625120,-1107.17494046,0.00014048,2]
[331090250,1720075627283,-1751.81537309,0.00014048,2]
[331090251,1720075627305,-153.14374671,0.00014117,2]
[331090252,1720075627325,-200.79177916,0.00014117,2]
[331090253,1720075627344,-31.28079356,0.00014118,2]
[331090254,1720075630140,-1334.99535312,0.00014118,2]
[331090255,1720075630163,-253.0,0.00014207,2]
[331090256,1720075630185,-6664.91078603,0.00014208,2]
[331090257,1720075634108,-886.98804783,0.00014208,2]
[331090259,1720075638112,-150.99909156,0.00014208,2]
[331090260,1720075641229,-1014.08783808,0.00014208,2]
[331090265,1720075822288,-156.1,0.000236,30]
[331090266,1720075822332,-213.67514085,0.00024,30]
[331090267,1720075822372,-1500.0,0.00024,30]
[331090268,1720075822418,-1206.79320679,0.00024453,30]
[331090269,1720075822460,-24208.9725,0.00024483,30]
[331090270,1720075822633,-9998.2,0.00025,60]
[331090271,1720075822676,-278.09096508,0.00025,60]
[331090272,1720075822718,-4074.47895158,0.00025,60]
[331090273,1720075822760,-2400.0,0.00025,60]
[331090274,1720075822801,-544.80681274,0.00026,120]
[331090275,1720075822839,-470.0,0.00026,120]
[331090276,1720075822881,-500.0,0.00026,120]
[331090277,1720075822923,-983.0,0.00026,120]
[331090278,1720075822964,-983.0,0.00026,120]
[331090279,1720075823006,-150.20600603,0.00026,120]
[331090280,1720075823048,-983.0,0.00027,120]
[331090281,1720075823087,-200.0,0.00027079,120]
[331090282,1720075823134,-400.0,0.00027397,60]
[331090283,1720075823178,-1348.212773,0.00027397,120]
[331090284,1720075823221,-909.47482687,0.000275,30]
[331090285,1720075823261,-12182.5227282,0.00028,30]
[331090286,1720075823299,-500.0,0.00028,120]
[331090287,1720075823337,-983.0,0.00028,120]
[331090288,1720075823377,-2013.23181022,0.00028,120]
[331090289,1720075823426,-983.0,0.00029,120]
[331090290,1720075823468,-2413.58641359,0.0002962,120]
[331090291,1720075823510,-519.12491115,0.000298,120]
[331090292,1720075823550,-386.01841845,0.0003,30]
[331090293,1720075823592,-700.0,0.0003,120]
[331090294,1720075823631,-202.77320758,0.0003,30]
[331090295,1720075823667,-7118.94618284,0.0003,30]